[Event "Mitropa Cup Open 2024"]
[Site "Apolda"]
[Date "2024.02.17"]
[Round "3.18"]
[White "Brunello, Sabino"]
[Black "Kraus, Tomas"]
[Result "1/2-1/2"]
[ECO "D31"]
[WhiteElo "2512"]
[BlackElo "2484"]
[Annotator "TA"]
[PlyCount "62"]
[EventDate "2024.02.15"]
[EventType "team-tourn"]
[EventCountry "GER"]
[SourceTitle "playchess.com"]
[Source "ChessBase"]
[SourceQuality "1"]
[WhiteTeam "Italy"]
[BlackTeam "Czech Republic"]
[WhiteTeamCountry "ITA"]
[BlackTeamCountry "CZE"]
[TimeControl "40/5400+30:1800+30"]

{[%evp 10,62,10,9,36,30,43,11,14,11,14,11,14,29,39,13,29,9,23,0,13,9,0,0,0,-10,-6,-18,-8,-53,-57,-42,0,0,0,0,8,8,10,0,0,0,0,0,5,6,6,6,6,0,8,0,7,0,8]} 1. d4 {[%emt 0:00:02]} d5 {[%emt 0:00:30]} 2. c4 {[%emt 0:00:09]} e6 {[%emt 0:00:37]} 3. Nc3 {[%emt 0:01:02]} Bb4 {[%emt 0:03:23]} 4. a3 {[%emt 0:01:52]} Bxc3+ {[%emt 0:00:07]} 5. bxc3 {[%emt 0:00:04]} c5 {[%emt 0:01:05]} 6. e3 {[%emt 0:00:19]} Ne7 {[%emt 0:00:32]} 7. Nf3 {[%emt 0:02:21]} O-O {[%emt 0:01:29]} 8. Bb2 {[%emt 0:05:05]} ({Of course not} 8. dxc5 Nd7 $11) 8... Nbc6 {[%emt 0:16:03]} 9. cxd5 {[%emt 0:12:25]} exd5 {[%emt 0:01:15]} 10. dxc5 {[%emt 0:00:30]} Qa5 {[%emt 0:07:58]} 11. Bd3 {[%emt 0:05:12]} Qxc5 {[%emt 0:07:18]} 12. Qc2 {[%emt 0:00:37]} h6 {[%emt 0:00:58]} 13. c4 {[%emt 0:00:51]} Be6 {[%emt 0:08:18][%cal Rd5c4,Bc8e6,Be6d5,Bd5c6][%mdl 32]} 14. Qc3 {[%emt 0:23:16][%csl Gb2][%cal Rc3g7] [#]} Qa5 {[%emt 0:03:32]} 15. Qxa5 {[%emt 0:01:53]} Nxa5 {[%emt 0:00:06]} 16. cxd5 {[%emt 0:00:07]} Bxd5 {[%emt 0:02:35]} 17. Ke2 {[%emt 0:05:46]} Nb3 {[%emt 0:03:59]} 18. Rad1 {[%emt 0:03:47]} Nc5 {[%emt 0:08:50]} 19. Nd4 {[%emt 0:14:32]} Nxd3 {[%emt 0:04:09]} 20. Kxd3 {[%emt 0:00:17]} Nc6 {[%emt 0:03:52]} (20... Bxg2 $2 {perishes.} 21. Rhg1 $18) 21. Nxc6 {[%emt 0:02:18] The position is equal.} Bxc6 {[%emt 0:00:16]} 22. f3 {[%emt 0:01:41]} f5 {[%emt 0:02:33]} 23. Ke2 {[%emt 0:03:24]} Rfd8 {[%emt 0:03:12]} 24. Rxd8+ {[%emt 0:00:55]} Rxd8 $11 {[%emt 0:00:05][%mdl 4096] Endgame. KRB-KRB} 25. Bd4 {[%emt 0:00:12]} a6 {[%emt 0:01:50]} 26. h4 {[%emt 0:00:54]} f4 {[%emt 0:04:46]} 27. Rc1 {[%emt 0:01:06]} fxe3 {[%emt 0:00:57]} 28. Kxe3 {[%emt 0:00:15]} Re8+ {[%emt 0:00:25]} 29. Kf4 {[%emt 0:01:16]} Rf8+ {[%emt 0:00:49]} 30. Ke3 {[%emt 0:01:55]} Re8+ {[%emt 0:00:07]} 31. Kf4 {[%emt 0:00:27]} Rf8+ {[%emt 0:14:24] Weighted Error Value: White=0.09 (flawless) /Black=0.06 (flawless) .  Inaccurate:     	White=3     	Black=1      OK:         	White=9     	Black=10     Best:        	White=1     	---} 1/2-1/2

[Event "Mitropa Cup Open 2024"]
[Site "Apolda"]
[Date "2024.02.17"]
[Round "3.19"]
[White "Gnojek, Petr"]
[Black "David, Alberto"]
[Result "0-1"]
[ECO "E12"]
[WhiteElo "2428"]
[BlackElo "2525"]
[Annotator "TA"]
[PlyCount "76"]
[EventDate "2024.02.15"]
[EventType "team-tourn"]
[EventCountry "GER"]
[SourceTitle "playchess.com"]
[Source "ChessBase"]
[SourceQuality "1"]
[WhiteTeam "Czech Republic"]
[BlackTeam "Italy"]
[WhiteTeamCountry "CZE"]
[BlackTeamCountry "ITA"]
[TimeControl "40/5400+30:1800+30"]

{[%evp 25,75,10,20,24,33,9,12,2,10,7,0,1,5,16,46,60,84,63,44,59,71,61,62,59,54,58,59,50,54,57,42,22,75,24,51,0,0,-12,-12,-12,-12,-70,-70,-70,-66,-325,-168,-29997,-29998,-29998,-29999,-29999]} 1. d4 {[%emt 0:00:04]} Nf6 {[%emt 0:00:07]} 2. c4 {[%emt 0:00:07]} e6 {[%emt 0:00:12]} 3. Nf3 {[%emt 0:00:17]} b6 {[%emt 0:00:48]} 4. a3 {[%emt 0:00:44]} Bb7 {[%emt 0:00:39]} 5. Nc3 {[%emt 0:00:13]} d5 {[%emt 0:00:10]} 6. cxd5 {[%emt 0:00:32]} Nxd5 {[%emt 0:00:23]} 7. Qc2 {[%emt 0:00:21]} Nxc3 {[%emt 0:03:13]} 8. bxc3 {[%emt 0:00:21]} Be7 {[%emt 0:01:17]} 9. e4 {[%emt 0:00:50]} O-O {[%emt 0:00:45]} 10. Bd3 {[%emt 0:00:41]} c5 {[%emt 0:00:16]} 11. O-O {[%emt 0:00:11]} Qc7 {[%emt 0:01:21]} 12. Qe2 {[%emt 0:00:43]} Nd7 {[%emt 0:01:32][%cal Bb8d7,Bd7f8,Bf8g6][%mdl 32]} 13. a4 {[%emt 0:07:04]} Rac8 {[%emt 0:09:02]} 14. Rd1 {[%emt 0:10:02]} Rfe8 {[%emt 0:05:50]} 15. e5 {[%emt 0:08:45]} Nf8 {[%emt 0:23:34]} 16. Be3 {[%emt 0:09:02] The position is equal.} Ng6 {[%emt 0:11:42]} 17. Ng5 {[%emt 0:06:35]} Bxg5 {[%emt 0:13:27]} 18. Bxg5 {[%emt 0:00:07]} cxd4 {[%emt 0:00:02]} 19. cxd4 {[%emt 0:00:06][%cal Oa4a5]} Qc3 {[%emt 0:00:06]} 20. Qg4 {[%emt 0:08:23]} Bd5 {[%emt 0:04:42]} 21. h4 {[%emt 0:08:29] [#] And now h5 would win.} (21. Ba6 {simplifies} Rb8 22. Bb5 Rf8 23. h4) 21... h5 {[%emt 0:01:06]} 22. Qxh5 {[%emt 0:00:09] Strongly threatening Ba6.} Qxd4 {[%emt 0:00:05]} 23. Bb5 {[%emt 0:08:49] This pair of bishops is nice.} (23. Bxg6 fxg6 24. Rxd4 (24. Qxg6 Qg4 $15) 24... gxh5 $11) 23... Qe4 {[%emt 0:00:05][%csl Gd5][%cal Re4g2]} 24. f3 {[%emt 0:00:04]} Qf5 {[%emt 0:00:18][%cal Og6e5] ...Nxe5! is the strong threat.} 25. Bxe8 {[%emt 0:01:53]} Rxe8 {[%emt 0:00:04]} 26. Qg4 {[%emt 0:00:05]} Qxg4 {[%emt 0:00:05]} 27. fxg4 {[%emt 0:00:02] Black must now prevent Re1.} Nxe5 {[%emt 0:00:07]} 28. Rac1 {[%emt 0:00:46]} a6 {[%emt 0:03:33]} (28... f6 $11 {remains equal.} 29. Bf4 Nxg4) 29. Rc7 {[%emt 0:09:20]} ({White should try} 29. Rd4 $16) 29... b5 {[%emt 0:00:25]} 30. axb5 {[%emt 0:00:04]} (30. a5 $14) 30... axb5 $11 {[%emt 0:00:03]} 31. Rb1 {[%emt 0:00:16]} Ra8 {[%emt 0:01:00]} 32. Rxb5 {[%emt 0:07:46]} Ra2 {[%emt 0:07:11]} 33. h5 {[%emt 0:00:34]} (33. Rb4 $11) 33... Rxg2+ $15 {[%emt 0:00:07]} (33... Nxg4 34. Rc8+ Kh7 35. Rbb8 Rxg2+ (35... Bxg2 36. Rh8#) 36. Kf1 Nh2+ 37. Ke1 Nf3+ (37... Rxg5 38. Rh8#) 38. Kf1 Nh2+ (38... Nxg5 39. Rh8#) 39. Ke1 Nf3+ (39... Rxg5 40. Rh8#) 40. Kf1 Nh2+ $16 (40... Nxg5 41. Rh8#)) 34. Kf1 {[%emt 0:00:02]} Ra2 $1 {[%emt 0:00:17][%mdl 1024] Black has compensation.} (34... Rxg4 $2 {loses.} 35. Rb8+ Kh7 36. Rcc8 $18) 35. Rb8+ {[%emt 0:00:34] Loses the game.} (35. Rc3 $15) 35... Kh7 $19 {[%emt 0:00:03] ( -> ...Bg2+)} 36. Rcc8 $2 {[%emt 0:00:03] [#]} (36. Rc3 $19) 36... Bg2+ {[%emt 0:00:05] Black mates.} 37. Ke1 {[%emt 0:00:32]} Nd3+ {[%emt 0:00:04]} 38. Kd1 {[%emt 0:00:03]} Bf3# {[%emt 0:00:04] Weighted Error Value: White=0.45/Black=0.09 (flawless) .  Mistake:       	White=5     	Black=1      Inaccurate:     	---       	Black=3      OK:         	White=8     	Black=8      Best:        	White=3     	Black=4      Strong:       	---       	Black=1} 0-1

[Event "Mitropa Cup Open 2024"]
[Site "Apolda"]
[Date "2024.02.17"]
[Round "3.20"]
[White "Carnicelli, Valerio"]
[Black "Nemec, Jachym"]
[Result "1/2-1/2"]
[ECO "B32"]
[WhiteElo "2427"]
[BlackElo "2393"]
[Annotator "TA"]
[PlyCount "82"]
[EventDate "2024.02.15"]
[EventType "team-tourn"]
[EventCountry "GER"]
[SourceTitle "playchess.com"]
[Source "ChessBase"]
[SourceQuality "1"]
[WhiteTeam "Italy"]
[BlackTeam "Czech Republic"]
[WhiteTeamCountry "ITA"]
[BlackTeamCountry "CZE"]
[TimeControl "40/5400+30:1800+30"]

{[%evp 14,82,30,28,45,19,25,19,27,23,28,29,28,20,34,29,36,27,25,-20,-18,-32,-31,-35,-34,-35,-28,-25,-29,-35,-16,-70,-62,-64,-66,-57,-65,-87,-45,-55,-43,-47,-42,-54,-40,-57,-50,-46,-14,-19,-22,-17,-8,-11,0,0,23,0,0,0,0,1,1,1,1,1,1,1,3,3,24]} 1. e4 {[%emt 0:00:03]} c5 {[%emt 0:00:05]} 2. Nf3 {[%emt 0:00:03][%cal Bg1f3,Bf3d4,Bd4b5,Bb5a3,Ba3c4][%mdl 32]} Nc6 {[%emt 0:00:30]} 3. d4 {[%emt 0:00:17]} cxd4 {[%emt 0:00:06]} 4. Nxd4 {[%emt 0:00:06]} e5 {[%emt 0:00:14]} 5. Nb5 {[%emt 0:00:09]} d6 {[%emt 0:00:09]} 6. N1c3 {[%emt 0:00:25]} a6 {[%emt 0:00:14]} 7. Na3 {[%emt 0:00:04]} Be6 {[%emt 0:00:27]} 8. Nc4 {[%emt 0:00:38]} Rb8 {[%emt 0:00:09]} 9. Ne3 {[%emt 0:00:49]} Nf6 {[%emt 0:00:48]} 10. Bd3 {[%emt 0:01:15]} Nb4 {[%emt 0:00:37]} 11. O-O {[%emt 0:02:45]} Be7 {[%emt 0:00:26]} 12. Bc4 {[%emt 0:10:04]} Rc8 {[%emt 0:07:13]} 13. Bb3 {[%emt 0:06:07]} Nc6 {[%emt 0:05:15]} 14. Ned5 {[%emt 0:16:04]} Nd4 {[%emt 0:07:33]} 15. Nxf6+ {[%emt 0:04:42]} Bxf6 {[%emt 0:00:22]} 16. Bxe6 {[%emt 0:02:29]} fxe6 {[%emt 0:00:24]} 17. Be3 {[%emt 0:01:42]} O-O {[%emt 0:04:24]} 18. Qd3 {[%emt 0:08:13]} Qb6 {[%emt 0:05:00]} 19. Rab1 {[%emt 0:01:46]} Qc6 {[%emt 0:02:19]} 20. Rbc1 {[%emt 0:02:19]} Qc4 {[%emt 0:17:56]} 21. Rfd1 {[%emt 0:06:45]} b5 {[%emt 0:06:05]} 22. a3 {[%emt 0:05:46]} ({White should play} 22. Bxd4 $11 exd4 23. Ne2 Qxa2 24. Nxd4) 22... Qxd3 $15 {[%emt 0:04:58]} 23. cxd3 {[%emt 0:03:38]} Nb3 {[%emt 0:00:25]} 24. Rb1 {[%emt 0:00:32]} h6 {[%emt 0:02:41]} 25. Rf1 {[%emt 0:06:32]} Bg5 {[%emt 0:04:25]} 26. Rbd1 {[%emt 0:01:27] Prevents Nd2} Nd4 {[%emt 0:04:21]} 27. Bxg5 {[%emt 0:04:37]} hxg5 {[%emt 0:00:05]} 28. f3 {[%emt 0:00:16]} Rf7 {[%emt 0:02:54]} 29. Rf2 {[%emt 0:01:25]} Rfc7 {[%emt 0:02:49]} 30. Ne2 {[%emt 0:04:06]} Nc2 {[%emt 0:06:02]} 31. d4 {[%emt 0:02:52]} Ne3 {[%emt 0:00:16]} 32. Re1 {[%emt 0:01:02]} Nc4 {[%emt 0:01:23]} 33. dxe5 {[%emt 0:01:01]} dxe5 {[%emt 0:00:22]} 34. Ng3 $1 {[%emt 0:00:29]} Rd8 {[%emt 0:01:38]} 35. Rc2 {[%emt 0:02:37] [#] And now b3 would win.} Rcd7 {[%emt 0:00:29] The position is equal.} 36. Nf1 {[%emt 0:01:04]} Rd3 {[%emt 0:00:46][%cal Og5g4]} 37. Kf2 {[%emt 0:01:44]} Rb3 {[%emt 0:06:42]} 38. Ree2 {[%emt 0:00:08]} Rdd3 {[%emt 0:01:39] [#]} 39. a4 $1 {[%emt 0:02:42]} Kh7 {[%emt 0:05:49]} (39... Kf7 40. axb5) 40. axb5 {[%emt 0:00:35]} axb5 {[%emt 0:00:02]} 41. Nd2 {[%emt 0:03:19]} Nxd2 {[%emt 0:01:14] Weighted Error Value: White=0.07 (flawless) /Black=0.06 (flawless) .  Mistake:       	White=1     	---        Inaccurate:     	White=2     	Black=2      OK:         	White=17    	Black=13     Best:        	White=1     	Black=1      Strong:       	White=1     	---} 1/2-1/2

[Event "Mitropa Cup Open 2024"]
[Site "Apolda"]
[Date "2024.02.18"]
[Round "4.1"]
[White "Sahidi, Samir"]
[Black "Bluebaum, Matthias"]
[Result "0-1"]
[ECO "B13"]
[WhiteElo "2478"]
[BlackElo "2655"]
[Annotator "TA"]
[PlyCount "92"]
[EventDate "2024.02.15"]
[EventType "team-tourn"]
[EventCountry "GER"]
[SourceTitle "playchess.com"]
[Source "ChessBase"]
[SourceQuality "1"]
[WhiteTeam "Slovakia"]
[BlackTeam "Germany"]
[WhiteTeamCountry "SVK"]
[BlackTeamCountry "GER"]
[TimeControl "40/5400+30:1800+30"]

{[%evp 30,92,-54,-57,-72,-54,-58,-78,-44,-98,-91,-312,-316,-313,-320,-313,-310,-301,-78,-76,-75,-79,-84,-81,-81,-75,-74,-142,-135,-133,-138,-139,-100,-127,-135,-350,-354,-339,-310,-315,-291,-685,-675,-661,-695,-689,-684,-717,-717,-695,-693,-997,-883,-1076,-1068,-1104,-1068,-1345,-1364,-1302,-1280,-29959,-3002,-29986,-1364]} 1. e4 {[%emt 0:00:05]} c6 {[%emt 0:00:06]} 2. d4 {[%emt 0:00:23]} d5 {[%emt 0:00:05]} 3. exd5 {[%emt 0:00:39]} cxd5 {[%emt 0:00:05]} 4. Bd3 {[%emt 0:00:25]} Nc6 {[%emt 0:00:46]} 5. c3 {[%emt 0:00:10]} Qc7 {[%emt 0:00:20]} 6. h3 {[%emt 0:00:29]} e6 {[%emt 0:00:31] 6...g6 is becoming the main line. B13: Caro-Kann: Exchange Variation and Panov-Botvinnik Attack.} 7. Nf3 {[%emt 0:00:32]} Bd6 {[%emt 0:00:05]} 8. O-O {[%emt 0:00:23]} Nge7 {[%emt 0:00:03]} 9. Re1 {[%emt 0:00:55]} O-O {[%emt 0:00:35]} 10. Bxh7+ {[%emt 0:28:48]} Kxh7 {[%emt 0:00:25]} 11. Ng5+ {[%emt 0:00:05]} Kg6 {[%emt 0:00:04]} 12. Qg4 {[%emt 0:00:26]} f5 {[%emt 0:01:37]} 13. Qh4 {[%emt 0:00:28]} f4 {[%emt 0:02:09]} 14. Qg4 {[%emt 0:04:41]} e5 {[%emt 0:00:17]} 15. Ne6+ {[%emt 0:00:55]} Kf7 {[%emt 0:01:20]} 16. Qxg7+ {[%emt 0:01:22]} Kxe6 {[%emt 0:00:06]} 17. Qxf8 {[%emt 0:05:02]} (17. dxe5 Nxe5 18. Qxf8 N7g6 19. Qe8+ Kf6 $19) 17... Ng6 $1 {[%emt 0:20:22]} 18. Qh6 $1 {[%emt 0:04:00]} Kf6 $1 {[%emt 0:02:40]} 19. Na3 $146 {[%emt 0:08:22]} (19. h4 $15 Qg7 (19... exd4 $2 20. cxd4 Qf7 21. Nc3 $18) 20. Qg5+ Kf7 21. h5) ({Predecessor:} 19. dxe5+ Bxe5 20. Nd2 Bf5 21. Nf3 Be4 22. Qg5+ Kg7 23. Nxe5 Qxe5 24. Qxe5+ Ncxe5 25. f3 {1-0 Blanco Ronquillo,H (2442)-Ohler,J (2273) Titled Tuesday intern op 24th Oct Late blitz 2023 (10)}) 19... Qg7 $1 $17 {[%emt 0:07:19]} (19... exd4 $2 20. Nb5 Qg7 21. Qxg7+ Kxg7 22. Nxd6 $18) 20. Qh5 $2 {[%emt 0:04:50] [#]} (20. dxe5+ $17 Bxe5 21. Qxg7+ Kxg7 22. c4) 20... Bd7 $1 $19 {[%emt 0:06:31]} (20... exd4 21. Nb5 (21. Qxd5 Qd7 $15) 21... Qd7 22. h4 $14 (22. Nxd4 Nxd4 23. cxd4 Qf5 $17) (22. Qxd5 Be5 $11) (22. cxd4 Kg7 $11)) 21. h4 {[%emt 0:06:39]} Rh8 {[%emt 0:10:51]} (21... exd4 $2 22. Qg5+ (22. Qxd5 Bb8 $11) 22... Kf7 23. Qxd5+ Kf8 24. Qxd6+ $18) 22. Qg5+ {[%emt 0:01:59]} Kf7 {[%emt 0:03:32]} 23. h5 {[%emt 0:00:29] [#]} Nge7 $2 {[%emt 0:00:23]} (23... Rh6 $1 $19 {is more deadly.} 24. dxe5 Ncxe5 (24... Ngxe5 25. Qxg7+ Kxg7 26. Bxf4 $17)) 24. Qxg7+ $17 {[%emt 0:00:58]} Kxg7 {[%emt 0:00:02]} 25. Nb5 {[%emt 0:00:26]} Bb8 {[%emt 0:00:16]} 26. dxe5 {[%emt 0:00:19]} Bxe5 {[%emt 0:00:05]} 27. Nxa7 {[%emt 0:06:43]} Rxh5 {[%emt 0:00:17]} 28. Nb5 {[%emt 0:02:28]} (28. Nxc6 $142 Nxc6 29. a4) 28... Ng6 $17 {[%emt 0:03:54]} 29. f3 {[%emt 0:08:14]} Nh4 {[%emt 0:04:41]} 30. Kf2 {[%emt 0:02:15]} Rg5 {[%emt 0:03:39]} 31. Rg1 {[%emt 0:00:08]} Nb4 {[%emt 0:04:48]} 32. Nd4 $2 {[%emt 0:01:25]} (32. a4 $17) 32... Bxd4+ {[%emt 0:01:01]} 33. cxd4 {[%emt 0:00:19]} Nd3+ {[%emt 0:00:17]} 34. Ke2 {[%emt 0:06:55]} Bb5 {[%emt 0:00:10]} (34... Rxg2+ 35. Rxg2+ (35. Kxd3 $2 {too greedy.} Rxg1 36. b4 Nxf3 $19) 35... Nxg2 36. Kxd3 $18) 35. Bxf4 $2 {[%emt 0:00:37]} (35. Bd2) 35... Nxf4+ $19 {[%emt 0:00:29]} 36. Kd2 {[%emt 0:00:58]} Nfxg2 {[%emt 0:00:45]} 37. Kc3 {[%emt 0:00:21]} Nxf3 {[%emt 0:00:29]} 38. Rh1 {[%emt 0:00:48]} Nf4 {[%emt 0:00:25]} 39. Kb4 {[%emt 0:02:10]} Ba6 {[%emt 0:00:45]} 40. b3 {[%emt 0:01:44]} Nxd4 {[%emt 0:02:13]} 41. Kc5 {[%emt 0:02:10]} Nf3 {[%emt 0:01:32]} 42. Kb6 {[%emt 0:01:06]} d4 {[%emt 0:00:22]} 43. Rac1 {[%emt 0:00:38]} Nd5+ {[%emt 0:00:47]} 44. Ka7 {[%emt 0:00:17]} d3 {[%emt 0:00:33]} 45. Rh3 {[%emt 0:04:40]} d2 {[%emt 0:00:38]} 46. Rd1 {[%emt 0:00:07]} Nc3 {[%emt 0:01:32]} (46... Ne5 $142 47. Kb8 Nc6+ 48. Kc8 Rg6 (48... b6+ {is a self mate.} 49. Kd7 Rg6 50. Rg3 Ne5+ 51. Kd8 Rxg3 52. Rxd2 Nf7+ 53. Kd7 Rc3 54. Rg2+ Kf8 55. Ke6 Ne3 56. Rg8+ Kxg8 57. Ke7 Bc8 58. Ke8 Rc6 59. Ke7 Re6#) 49. Rg3 Rxg3 50. Rxd2 Rg6 51. Rxd5 Ne7+ 52. Kb8 Nxd5 53. Ka7 Bb5 54. a4 Ra6+ (54... Bc6 55. b4 Bxa4 56. Ka8 Ra6+ 57. Kb8 Bb5 58. Kxb7 Ra3 59. Kc8 Bc6 60. Kd8 Ra8#) 55. Kxb7 Rb6+ 56. Ka7 Bc6 57. b4 Rxb4 58. a5 Rb7+ 59. Ka8 Nc7#) 0-1

[Event "Mitropa Cup Open 2024"]
[Site "Apolda"]
[Date "2024.02.18"]
[Round "4.2"]
[White "Svane, Rasmus"]
[Black "Haring, Filip"]
[Result "1/2-1/2"]
[ECO "D24"]
[WhiteElo "2637"]
[BlackElo "2432"]
[Annotator "TA"]
[PlyCount "67"]
[EventDate "2024.02.15"]
[EventType "team-tourn"]
[EventCountry "GER"]
[SourceTitle "playchess.com"]
[Source "ChessBase"]
[SourceQuality "1"]
[WhiteTeam "Germany"]
[BlackTeam "Slovakia"]
[WhiteTeamCountry "GER"]
[BlackTeamCountry "SVK"]
[TimeControl "40/5400+30:1800+30"]

{[%evp 9,67,0,43,44,39,47,41,40,45,44,46,49,37,33,48,6,20,5,31,16,23,9,8,16,26,18,16,4,10,12,21,24,13,13,14,19,16,16,14,13,15,8,12,8,8,8,8,0,0,0,9,0,0,0,0,0,0,0,0,0]} 1. d4 {[%emt 0:00:03]} Nf6 {[%emt 0:00:12]} 2. c4 {[%emt 0:00:11]} e6 {[%emt 0:00:12]} 3. Nf3 {[%emt 0:00:06]} d5 {[%emt 0:00:35]} 4. Nc3 {[%emt 0:00:09]} dxc4 {[%emt 0:00:33]} 5. e4 {[%emt 0:00:29][%cal Be2e4,Be4e5][%mdl 32]} b5 {[%emt 0:00:11]} 6. e5 $1 {[%emt 0:00:33]} Nd5 {[%emt 0:00:08]} 7. Nxb5 {[%emt 0:00:09]} Nb6 {[%emt 0:00:06]} 8. Be2 {[%emt 0:00:15] White is slightly better.} Nc6 {[%emt 0:00:34]} 9. Be3 {[%emt 0:00:48]} Be7 {[%emt 0:00:17]} 10. Nc3 {[%emt 0:01:27]} Bb7 {[%emt 0:01:14]} 11. O-O {[%emt 0:02:27]} Qd7 {[%emt 0:01:36]} 12. b3 {[%emt 0:10:18]} cxb3 {[%emt 0:00:43]} 13. axb3 {[%emt 0:00:21]} O-O {[%emt 0:02:15]} 14. Qb1 {[%emt 0:01:18]} Nb4 {[%emt 0:02:07]} 15. Ne4 {[%emt 0:05:39]} Qc6 {[%emt 0:13:43]} 16. Nfd2 {[%emt 0:26:49]} Qc2 {[%emt 0:10:06]} 17. Qxc2 {[%emt 0:01:56]} Nxc2 {[%emt 0:00:02]} 18. Rac1 {[%emt 0:00:10]} Nxe3 {[%emt 0:00:52]} 19. fxe3 {[%emt 0:00:09]} Bxe4 {[%emt 0:10:36]} 20. Nxe4 {[%emt 0:00:34]} Nd5 {[%emt 0:00:06] Black is weak on the light squares} 21. Kf2 {[%emt 0:14:05] The position is equal.} f6 {[%emt 0:09:07]} 22. exf6 {[%emt 0:08:23]} Nxf6 {[%emt 0:00:04]} 23. Nxf6+ {[%emt 0:00:24]} Rxf6+ {[%emt 0:00:04]} 24. Kg1 {[%emt 0:04:52]} Rxf1+ {[%emt 0:04:29]} 25. Bxf1 $11 {[%emt 0:01:19][%mdl 4096] Endgame. KRB-KRB} Bd6 {[%emt 0:04:12]} 26. Rc6 {[%emt 0:00:48]} e5 {[%emt 0:02:10]} 27. dxe5 {[%emt 0:02:47]} Bxe5 {[%emt 0:00:07]} 28. Ra6 {[%emt 0:02:02]} Bd6 {[%emt 0:01:17]} 29. Bc4+ {[%emt 0:02:28]} Kf8 {[%emt 0:00:07]} 30. Kf2 {[%emt 0:02:43]} Re8 {[%emt 0:01:48]} 31. Rxa7 {[%emt 0:04:08]} Rxe3 {[%emt 0:00:15]} 32. Rxc7 {[%emt 0:02:07]} (32. Kxe3 $5 Bc5+ $8 33. Ke2 Bxa7 34. b4 $17) 32... Bxc7 {[%emt 0:00:05]} 33. Kxe3 {[%emt 0:00:05]} Bxh2 {[%emt 0:00:04]} 34. b4 {[%emt 0:00:06] Weighted Error Value: White=0.04 (flawless) /Black=0.03 (flawless) .  Inaccurate:     	White=1     	---        OK:         	White=9     	Black=15     Best:        	White=2     	Black=1} 1/2-1/2

[Event "Mitropa Cup Open 2024"]
[Site "Apolda"]
[Date "2024.02.18"]
[Round "4.3"]
[White "Turcan, Richard"]
[Black "Kollars, Dmitrij"]
[Result "0-1"]
[ECO "C78"]
[WhiteElo "2393"]
[BlackElo "2632"]
[Annotator "RC"]
[PlyCount "136"]
[EventDate "2024.02.15"]
[EventType "team-tourn"]
[EventCountry "GER"]
[SourceTitle "playchess.com"]
[Source "ChessBase"]
[SourceQuality "1"]
[WhiteTeam "Slovakia"]
[BlackTeam "Germany"]
[WhiteTeamCountry "SVK"]
[BlackTeamCountry "GER"]
[TimeControl "40/5400+30:1800+30"]

1. e4 {[%emt 0:00:02]} e5 {[%emt 0:04:38]} 2. Nf3 {[%emt 0:00:12]} Nc6 {[%emt 0:00:05]} 3. Bb5 {[%emt 0:00:11]} a6 {[%emt 0:00:09]} 4. Ba4 {[%emt 0:00:10]} Nf6 {[%emt 0:00:10]} 5. O-O {[%emt 0:00:21]} b5 {[%emt 0:00:15]} 6. Bb3 {[%emt 0:00:07]} Bc5 {[%emt 0:00:07]} 7. a4 {[%emt 0:00:19]} Bb7 {[%emt 0:02:16]} 8. c3 {[%emt 0:01:42]} d6 {[%emt 0:00:58]} 9. d4 {[%emt 0:01:20]} Bb6 {[%emt 0:00:16]} 10. Re1 {[%emt 0:02:25]} O-O {[%emt 0:00:47]} 11. Bg5 {[%emt 0:06:00]} h6 {[%emt 0:00:07]} 12. Bh4 {[%emt 0:01:07]} b4 {[%emt 0:00:39]} 13. Bd5 {[%emt 0:10:25]} g5 {[%emt 0:01:50]} 14. Nxg5 {[%emt 0:06:05]} Nxd5 {[%emt 0:00:57]} 15. exd5 {[%emt 0:03:25]} hxg5 {[%emt 0:00:32]} 16. dxc6 {[%emt 0:07:18]} Bxc6 {[%emt 0:00:06]} 17. Qg4 {[%emt 0:05:07]} f6 {[%emt 0:02:20]} 18. dxe5 {[%emt 0:12:13]} fxe5 {[%emt 0:08:33]} 19. Nd2 {[%emt 0:08:39]} bxc3 {[%emt 0:12:38]} 20. bxc3 {[%emt 0:02:00]} Rf4 {[%emt 0:09:31]} 21. Qe6+ {[%emt 0:01:09]} Kg7 {[%emt 0:00:54]} 22. Bg3 {[%emt 0:01:09]} Qf6 {[%emt 0:03:06]} 23. Qxf6+ {[%emt 0:00:16]} Rxf6 {[%emt 0:00:37]} 24. Nc4 {[%emt 0:05:42]} Ba7 {[%emt 0:02:50]} 25. a5 {[%emt 0:04:12]} Rb8 {[%emt 0:04:38]} 26. Rab1 {[%emt 0:01:42]} Rff8 {[%emt 0:01:00]} 27. Nd2 {[%emt 0:05:49]} Kg6 {[%emt 0:04:00]} 28. h4 {[%emt 0:05:06]} gxh4 {[%emt 0:16:43]} 29. Bxh4 {[%emt 0:00:10]} Rxb1 {[%emt 0:01:23]} 30. Rxb1 {[%emt 0:00:21]} Rf4 {[%emt 0:00:15]} 31. Rb4 {[%emt 0:02:50]} e4 {[%emt 0:01:59]} 32. Bg3 {[%emt 0:01:12]} Rg4 {[%emt 0:00:33]} 33. Kh2 {[%emt 0:01:20]} Kf5 {[%emt 0:04:32]} 34. Nb3 {[%emt 0:03:48]} Bd5 {[%emt 0:02:03]} 35. Nd4+ {[%emt 0:00:41]} Kf6 {[%emt 0:01:12]} 36. Nc2 {[%emt 0:01:26]} Rg8 {[%emt 0:03:51]} 37. Ne3 {[%emt 0:00:19]} Bc6 {[%emt 0:00:10]} 38. Bf4 {[%emt 0:01:12]} Rh8+ {[%emt 0:01:55]} 39. Kg1 {[%emt 0:00:37]} Rh5 {[%emt 0:00:39]} 40. Nc4 {[%emt 0:01:30]} Ke6 {[%emt 0:03:28]} 41. Nd2 {[%emt 0:18:25]} Rxa5 {[%emt 0:06:09]} 42. Nxe4 {[%emt 0:00:38]} Ra1+ {[%emt 0:02:40]} 43. Kh2 {[%emt 0:00:05]} a5 {[%emt 0:00:09]} 44. Rc4 {[%emt 0:04:15]} Bd5 {[%emt 0:06:56]} 45. Rxc7 {[%emt 0:00:59]} Bb6 {[%emt 0:00:05]} 46. Rc8 {[%emt 0:01:18]} Bxe4 {[%emt 0:00:24]} 47. Re8+ {[%emt 0:00:07]} Kf5 {[%emt 0:01:51]} 48. Bxd6 {[%emt 0:00:20]} Bc6 {[%emt 0:01:07]} 49. Re5+ {[%emt 0:03:48]} Kf6 {[%emt 0:02:16]} 50. f4 {[%emt 0:00:28]} Rd1 {[%emt 0:05:06]} 51. Be7+ {[%emt 0:00:18]} Kf7 {[%emt 0:00:07]} 52. Bc5 {[%emt 0:00:22]} Bd8 {[%emt 0:00:07]} 53. Rf5+ {[%emt 0:04:09]} Ke6 {[%emt 0:00:52]} 54. Re5+ {[%emt 0:00:28]} Kd7 {[%emt 0:00:06]} 55. Kh3 {[%emt 0:01:05]} a4 {[%emt 0:03:48]} 56. Re2 {[%emt 0:00:58]} Rd3+ {[%emt 0:01:19]} 57. Kg4 {[%emt 0:00:31]} Rxc3 {[%emt 0:00:08]} 58. Bd4 {[%emt 0:00:16]} Rd3 {[%emt 0:01:08]} 59. Be5 {[%emt 0:00:09]} a3 {[%emt 0:00:50]} 60. Kf5 {[%emt 0:00:25]} Bd5 {[%emt 0:02:02]} 61. g4 {[%emt 0:00:25]} a2 {[%emt 0:00:13]} 62. g5 {[%emt 0:00:35]} Bc7 {[%emt 0:03:45]} 63. Bf6 {[%emt 0:01:39]} Rf3 {[%emt 0:00:28]} 64. Re1 {[%emt 0:00:36]} Rxf4+ {[%emt 0:00:42]} 65. Kg6 {[%emt 0:00:05]} Rb4 {[%emt 0:00:37]} 66. Rd1 {[%emt 0:00:42]} Ke6 {[%emt 0:00:09]} 67. Re1+ {[%emt 0:00:22]} Be4+ {[%emt 0:00:10]} 68. Kg7 {[%emt 0:00:10]} Be5 {[%emt 0:00:22]} 0-1